fUSD/lending_fUSD_20260516
["ID","MTS","AMOUNT","RATE_DAILY","PERIOD"]
[422406490,1778935929000,-500.0,0.00040518,120]
[422406493,1778935929000,-452.4323,0.00040518,120]
[422406492,1778935929000,-546.142695,0.00040518,120]
[422406494,1778935929000,-500.0,0.00040518,120]
[422406495,1778935929000,-517.44264408,0.00040518,120]
[422406499,1778935929000,-500.0,0.00040518,120]
[422406496,1778935929000,-500.0,0.00040518,120]
[422406501,1778935929000,-500.0,0.00040518,120]
[422406498,1778935929000,-500.0,0.00040518,120]
[422406497,1778935929000,-500.0,0.00040518,120]
[422406503,1778935929000,-500.0,0.00040518,120]
[422406491,1778935929000,-500.0,0.00040518,120]
[422406486,1778935929000,-541.52156517,0.00040518,120]
[422406502,1778935929000,-500.0,0.00040518,120]
[422406509,1778935929000,-500.0,0.00040518,120]
[422406513,1778935929000,-523.50311283,0.00040518,120]
[422406511,1778935929000,-500.0,0.00040518,120]
[422406508,1778935929000,-532.31597948,0.00040518,120]
[422406500,1778935929000,-500.0,0.00040518,120]
[422406506,1778935929000,-151.09601897,0.00040518,120]
[422406512,1778935929000,-500.0,0.00040518,120]
[422406510,1778935929000,-500.0,0.00040518,120]
[422406507,1778935929000,-526.97806317,0.00040518,120]
[422406516,1778935929000,-500.0,0.00040518,120]
[422406504,1778935929000,-258.98645835,0.00040518,120]
[422406505,1778935929000,-500.0,0.00040518,120]
[422406515,1778935929000,-500.0,0.00040518,120]
[422406514,1778935929000,-518.70261448,0.00040518,120]
[422406589,1778935930000,-500.0,0.00040518,120]
[422406600,1778935930000,-565.96661492,0.00040518,120]
[422406590,1778935930000,-541.42723178,0.00040518,120]
[422406587,1778935930000,-500.0,0.00040518,120]
[422406586,1778935930000,-277.14054995,0.00040518,120]
[422406581,1778935930000,-514.91893428,0.00040518,120]
[422406582,1778935930000,-500.0,0.00040518,120]
[422406583,1778935930000,-500.0,0.00040518,120]
[422406585,1778935930000,-500.0,0.00040518,120]
[422406588,1778935930000,-157.76841055,0.00040518,120]
[422406599,1778935930000,-500.0,0.00040518,120]
[422406584,1778935930000,-536.54545481,0.00040518,120]
[422406597,1778935930000,-539.33945748,0.00040518,120]
[422406605,1778935930000,-500.0,0.00040518,120]
[422406595,1778935930000,-399.98671468,0.00040518,120]
[422406592,1778935930000,-500.0,0.00040518,120]
[422406593,1778935930000,-500.0,0.00040518,120]
[422406594,1778935930000,-500.0,0.00040518,120]
[422406598,1778935930000,-500.0,0.00040518,120]
[422406602,1778935930000,-500.0,0.00040518,120]
[422406612,1778935930000,-500.0,0.00040518,120]
[422406601,1778935930000,-500.0,0.00040518,120]
[422406606,1778935930000,-183.96104048,0.00040518,120]
[422406603,1778935930000,-500.0,0.00040518,120]
[422406607,1778935930000,-330.59541684,0.00040518,120]
[422406611,1778935930000,-500.0,0.00040518,120]
[422406578,1778935930000,-544.78150076,0.00040518,120]
[422406596,1778935930000,-177.52261763,0.00040518,120]
[422406580,1778935930000,-239.71464693,0.00040518,120]
[422406559,1778935930000,-217.91931108,0.00040518,120]
[422406577,1778935930000,-500.0,0.00040518,120]
[422406552,1778935930000,-500.0,0.00040518,120]
[422406551,1778935930000,-500.0,0.00040518,120]
[422406550,1778935930000,-347.6046446,0.00040518,120]
[422406549,1778935930000,-500.0,0.00040518,120]
[422406553,1778935930000,-500.0,0.00040518,120]
[422406554,1778935930000,-500.0,0.00040518,120]
[422406564,1778935930000,-500.0,0.00040518,120]
[422406563,1778935930000,-467.40723993,0.00040518,120]
[422406560,1778935930000,-500.0,0.00040518,120]
[422406556,1778935930000,-500.0,0.00040518,120]
[422406555,1778935930000,-500.0,0.00040518,120]
[422406558,1778935930000,-500.0,0.00040518,120]
[422406557,1778935930000,-500.0,0.00040518,120]
[422406579,1778935930000,-322.63765759,0.00040518,120]
[422406561,1778935930000,-500.0,0.00040518,120]
[422406562,1778935930000,-511.87755632,0.00040518,120]
[422406566,1778935930000,-500.0,0.00040518,120]
[422406568,1778935930000,-418.42591805,0.00040518,120]
[422406567,1778935930000,-327.68715089,0.00040518,120]
[422406576,1778935930000,-488.36818305,0.00040518,120]
[422406565,1778935930000,-552.18245657,0.00040518,120]
[422406573,1778935930000,-337.27073591,0.00040518,120]
[422406571,1778935930000,-500.0,0.00040518,120]
[422406570,1778935930000,-500.0,0.00040518,120]
[422406572,1778935930000,-469.59395427,0.00040518,120]
[422406569,1778935930000,-500.0,0.00040518,120]
[422406575,1778935930000,-500.0,0.00040518,120]
[422406574,1778935930000,-500.0,0.00040518,120]
[422406609,1778935930000,-522.46224193,0.00040518,120]
[422406608,1778935930000,-500.0,0.00040518,120]
[422406591,1778935930000,-511.84966688,0.00040518,120]
[422406610,1778935930000,-500.0,0.00040518,120]
[422406644,1778935930000,-539.71005652,0.00040518,120]
[422406643,1778935930000,-410.88039517,0.00040518,120]
[422406651,1778935930000,-513.66678398,0.00040518,120]
[422406648,1778935930000,-500.0,0.00040518,120]
[422406640,1778935930000,-500.0,0.00040518,120]
[422406647,1778935930000,-584.08123664,0.00040518,120]
[422406645,1778935930000,-500.0,0.00040518,120]
[422406641,1778935930000,-500.0,0.00040518,120]
[422406646,1778935930000,-527.74600573,0.00040518,120]
[422406654,1778935930000,-232.48292658,0.00040518,120]
[422406656,1778935930000,-500.0,0.00040518,120]
[422406661,1778935930000,-559.19743968,0.00040518,120]
[422406660,1778935930000,-500.0,0.00040518,120]
[422406652,1778935930000,-500.0,0.00040518,120]
[422406655,1778935930000,-500.0,0.00040518,120]
[422406658,1778935930000,-500.0,0.00040518,120]
[422406659,1778935930000,-500.0,0.00040518,120]
[422406657,1778935930000,-538.29380016,0.00040518,120]
[422406665,1778935930000,-500.0,0.00040518,120]
[422406663,1778935930000,-500.0,0.00040518,120]
[422406662,1778935930000,-500.0,0.00040518,120]
[422406666,1778935930000,-500.0,0.00040518,120]
[422406669,1778935930000,-500.0,0.00040518,120]
[422406668,1778935930000,-500.0,0.00040518,120]
[422406670,1778935930000,-337.66560103,0.00040518,120]
[422406667,1778935930000,-500.0,0.00040518,120]
[422406672,1778935930000,-500.0,0.00040518,120]
[422406604,1778935930000,-444.54585534,0.00040518,120]
[422406664,1778935930000,-500.0,0.00040518,120]
[422406653,1778935930000,-500.0,0.00040518,120]
[422406671,1778935930000,-295.248604,0.00040518,120]
[422406649,1778935930000,-270.69304581,0.00040518,120]
[422406642,1778935930000,-500.0,0.00040518,120]
[422406625,1778935930000,-500.0,0.00040518,120]
[422406626,1778935930000,-516.70159593,0.00040518,120]
[422406624,1778935930000,-500.0,0.00040518,120]
[422406614,1778935930000,-500.0,0.00040518,120]
[422406616,1778935930000,-214.62304125,0.00040518,120]
[422406615,1778935930000,-562.83822398,0.00040518,120]
[422406613,1778935930000,-500.0,0.00040518,120]
[422406618,1778935930000,-543.96195367,0.00040518,120]
[422406623,1778935930000,-365.19982333,0.00040518,120]
[422406619,1778935930000,-500.0,0.00040518,120]
[422406622,1778935930000,-585.4299538,0.00040518,120]
[422406621,1778935930000,-571.19080673,0.00040518,120]
[422406620,1778935930000,-500.0,0.00040518,120]
[422406617,1778935930000,-313.63580416,0.00040518,120]
[422406627,1778935930000,-229.59902217,0.00040518,120]
[422406634,1778935930000,-500.0,0.00040518,120]
[422406628,1778935930000,-500.0,0.00040518,120]
[422406637,1778935930000,-500.0,0.00040518,120]
[422406635,1778935930000,-543.90331522,0.00040518,120]
[422406632,1778935930000,-552.0174114,0.00040518,120]
[422406638,1778935930000,-500.0,0.00040518,120]
[422406629,1778935930000,-296.61466142,0.00040518,120]
[422406650,1778935930000,-500.0,0.00040518,120]
[422406631,1778935930000,-325.10358024,0.00040518,120]
[422406636,1778935930000,-528.81530444,0.00040518,120]
[422406633,1778935930000,-206.68337512,0.00040518,120]
[422406630,1778935930000,-210.22193736,0.00040518,120]
[422406639,1778935930000,-531.5760601,0.00040518,120]
[422406710,1778935931000,-500.0,0.00040518,120]
[422406719,1778935931000,-500.0,0.00040518,120]
[422406714,1778935931000,-500.0,0.00040518,120]
[422406712,1778935931000,-183.09995576,0.00040518,120]
[422406709,1778935931000,-500.0,0.00040518,120]
[422406708,1778935931000,-500.0,0.00040518,120]
[422406713,1778935931000,-500.0,0.00040518,120]
[422406705,1778935931000,-429.32546729,0.00040518,120]
[422406715,1778935931000,-500.0,0.00040518,120]
[422406707,1778935931000,-500.0,0.00040518,120]
[422406721,1778935931000,-500.0,0.00040518,120]
[422406711,1778935931000,-300.57371159,0.00040518,120]
[422406722,1778935931000,-500.0,0.00040518,120]
[422406731,1778935931000,-544.04462139,0.00040518,120]
[422406729,1778935931000,-512.43617611,0.00040518,120]
[422406718,1778935931000,-500.0,0.00040518,120]
[422406720,1778935931000,-500.0,0.00040518,120]
[422406723,1778935931000,-500.0,0.00040518,120]
[422406725,1778935931000,-500.0,0.00040518,120]
[422406724,1778935931000,-194.29571633,0.00040518,120]
[422406728,1778935931000,-500.0,0.00040518,120]
[422406726,1778935931000,-500.0,0.00040518,120]
[422406727,1778935931000,-500.0,0.00040518,120]
[422406732,1778935931000,-500.0,0.00040518,120]
[422406742,1778935931000,-500.0,0.00040518,120]
[422406743,1778935931000,-500.0,0.00040518,120]
[422406717,1778935931000,-500.0,0.00040518,120]
[422406735,1778935931000,-335.76591805,0.00040518,120]
[422406730,1778935931000,-503.80448355,0.00040518,120]
[422406716,1778935931000,-500.0,0.00040518,120]
[422406678,1778935931000,-541.64611066,0.00040518,120]
[422406701,1778935931000,-500.0,0.00040518,120]
[422406734,1778935931000,-539.08565771,0.00040518,120]
[422406677,1778935931000,-500.0,0.00040518,120]
[422406675,1778935931000,-500.0,0.00040518,120]
[422406674,1778935931000,-500.0,0.00040518,120]
[422406673,1778935931000,-370.52680554,0.00040518,120]
[422406680,1778935931000,-500.0,0.00040518,120]
[422406690,1778935931000,-500.0,0.00040518,120]
[422406679,1778935931000,-500.0,0.00040518,120]
[422406691,1778935931000,-500.0,0.00040518,120]
[422406682,1778935931000,-500.0,0.00040518,120]
[422406681,1778935931000,-500.0,0.00040518,120]
[422406688,1778935931000,-500.0,0.00040518,120]
[422406686,1778935931000,-500.0,0.00040518,120]
[422406683,1778935931000,-500.0,0.00040518,120]
[422406685,1778935931000,-500.0,0.00040518,120]
[422406689,1778935931000,-500.0,0.00040518,120]
[422406687,1778935931000,-576.86716631,0.00040518,120]
[422406692,1778935931000,-500.0,0.00040518,120]
[422406704,1778935931000,-532.79599202,0.00040518,120]
[422406693,1778935931000,-500.0,0.00040518,120]
[422406697,1778935931000,-500.0,0.00040518,120]
[422406696,1778935931000,-189.5282638,0.00040518,120]
[422406703,1778935931000,-500.0,0.00040518,120]
[422406695,1778935931000,-500.0,0.00040518,120]
[422406694,1778935931000,-500.0,0.00040518,120]
[422406702,1778935931000,-500.0,0.00040518,120]
[422406698,1778935931000,-500.0,0.00040518,120]
[422406700,1778935931000,-500.0,0.00040518,120]
[422406699,1778935931000,-500.0,0.00040518,120]
[422406706,1778935931000,-500.0,0.00040518,120]
[422406737,1778935931000,-545.19862872,0.00040518,120]
[422406676,1778935931000,-618.54515814,0.00040518,120]
[422406741,1778935931000,-500.0,0.00040518,120]
[422406771,1778935931000,-522.18540846,0.00040518,120]
[422406773,1778935931000,-500.0,0.00040518,120]
[422406775,1778935931000,-500.0,0.00040518,120]
[422406774,1778935931000,-500.0,0.00040518,120]
[422406779,1778935931000,-500.0,0.00040518,120]
[422406780,1778935931000,-500.0,0.00040518,120]
[422406778,1778935931000,-523.66370642,0.00040518,120]
[422406781,1778935931000,-288.48112231,0.00040518,120]
[422406777,1778935931000,-500.0,0.00040518,120]
[422406776,1778935931000,-500.0,0.00040518,120]
[422406785,1778935931000,-546.27388126,0.00040518,120]
[422406784,1778935931000,-425.03978083,0.00040518,120]
[422406786,1778935931000,-216.52800661,0.00040518,120]
[422406795,1778935931000,-500.0,0.00040518,120]
[422406793,1778935931000,-500.0,0.00040518,120]
[422406789,1778935931000,-500.0,0.00040518,120]
[422406796,1778935931000,-500.0,0.00040518,120]
[422406788,1778935931000,-533.70283734,0.00040518,120]
[422406787,1778935931000,-500.0,0.00040518,120]
[422406790,1778935931000,-500.0,0.00040518,120]
[422406792,1778935931000,-500.0,0.00040518,120]
[422406791,1778935931000,-500.0,0.00040518,120]
[422406794,1778935931000,-500.0,0.00040518,120]
[422406798,1778935931000,-500.0,0.00040518,120]
[422406800,1778935931000,-500.0,0.00040518,120]
[422406797,1778935931000,-313.8741503,0.00040518,120]
[422406801,1778935931000,-568.92714436,0.00040518,120]
[422406799,1778935931000,-500.0,0.00040518,120]
[422406739,1778935931000,-529.62374565,0.00040518,120]
[422406782,1778935931000,-500.0,0.00040518,120]
[422406783,1778935931000,-500.0,0.00040518,120]
[422406684,1778935931000,-500.0,0.00040518,120]
[422406768,1778935931000,-500.0,0.00040518,120]
[422406772,1778935931000,-476.62361204,0.00040518,120]
[422406740,1778935931000,-500.0,0.00040518,120]
[422406733,1778935931000,-539.99995668,0.00040518,120]
[422406736,1778935931000,-510.29422042,0.00040518,120]
[422406738,1778935931000,-563.67683235,0.00040518,120]
[422406755,1778935931000,-500.0,0.00040518,120]
[422406756,1778935931000,-500.0,0.00040518,120]
[422406745,1778935931000,-500.0,0.00040518,120]
[422406749,1778935931000,-500.0,0.00040518,120]
[422406746,1778935931000,-262.32617383,0.00040518,120]
[422406751,1778935931000,-500.0,0.00040518,120]
[422406750,1778935931000,-500.0,0.00040518,120]
[422406748,1778935931000,-547.28473712,0.00040518,120]
[422406747,1778935931000,-500.0,0.00040518,120]
[422406754,1778935931000,-500.0,0.00040518,120]
[422406744,1778935931000,-516.6067559,0.00040518,120]
[422406752,1778935931000,-500.0,0.00040518,120]
[422406753,1778935931000,-500.0,0.00040518,120]
[422406763,1778935931000,-544.71848173,0.00040518,120]
[422406769,1778935931000,-500.0,0.00040518,120]
[422406770,1778935931000,-500.0,0.00040518,120]
[422406766,1778935931000,-427.34247333,0.00040518,120]
[422406765,1778935931000,-416.86396155,0.00040518,120]
[422406761,1778935931000,-500.0,0.00040518,120]
[422406764,1778935931000,-500.0,0.00040518,120]
[422406767,1778935931000,-500.0,0.00040518,120]
[422406762,1778935931000,-500.0,0.00040518,120]
[422406758,1778935931000,-500.0,0.00040518,120]
[422406760,1778935931000,-500.0,0.00040518,120]
[422406759,1778935931000,-500.0,0.00040518,120]
[422406757,1778935931000,-538.30072179,0.00040518,120]
[422406830,1778935932000,-500.0,0.00040518,120]
[422406827,1778935932000,-500.0,0.00040518,120]
[422406823,1778935932000,-500.0,0.00040518,120]
[422406831,1778935932000,-500.0,0.00040518,120]
[422406826,1778935932000,-500.0,0.00040518,120]
[422406825,1778935932000,-500.0,0.00040518,120]
[422406821,1778935932000,-500.0,0.00040518,120]
[422406839,1778935932000,-500.0,0.00040518,120]
[422406828,1778935932000,-500.0,0.00040518,120]
[422406829,1778935932000,-500.0,0.00040518,120]
[422406832,1778935932000,-500.0,0.00040518,120]
[422406835,1778935932000,-500.0,0.00040518,120]
[422406833,1778935932000,-500.0,0.00040518,120]
[422406834,1778935932000,-500.0,0.00040518,120]
[422406822,1778935932000,-500.0,0.00040518,120]
[422406824,1778935932000,-500.0,0.00040518,120]
[422406813,1778935932000,-500.0,0.00040518,120]
[422406809,1778935932000,-500.0,0.00040518,120]
[422406811,1778935932000,-538.16080527,0.00040518,120]
[422406807,1778935932000,-500.0,0.00040518,120]
[422406808,1778935932000,-500.0,0.00040518,120]
[422406837,1778935932000,-500.0,0.00040518,120]
[422406806,1778935932000,-500.0,0.00040518,120]
[422406803,1778935932000,-500.0,0.00040518,120]
[422406804,1778935932000,-500.0,0.00040518,120]
[422406805,1778935932000,-500.0,0.00040518,120]
[422406820,1778935932000,-500.0,0.00040518,120]
[422406802,1778935932000,-367.68215952,0.00040518,120]
[422406818,1778935932000,-500.0,0.00040518,120]
[422406815,1778935932000,-500.0,0.00040518,120]
[422406814,1778935932000,-500.0,0.00040518,120]
[422406812,1778935932000,-500.0,0.00040518,120]
[422406817,1778935932000,-500.0,0.00040518,120]
[422406816,1778935932000,-500.0,0.00040518,120]
[422406819,1778935932000,-500.0,0.00040518,120]
[422406810,1778935932000,-500.0,0.00040518,120]
[422406838,1778935932000,-500.0,0.00040518,120]
[422406843,1778935932000,-500.0,0.00040518,120]
[422406836,1778935932000,-500.0,0.00040518,120]
[422406860,1778935932000,-274.39368105,0.00040518,120]
[422406862,1778935932000,-500.0,0.00040518,120]
[422406864,1778935932000,-500.0,0.00040518,120]
[422406865,1778935932000,-500.0,0.00040518,120]
[422406872,1778935932000,-502.31187994,0.00040518,120]
[422406868,1778935932000,-500.0,0.00040518,120]
[422406873,1778935932000,-278.07448667,0.00040518,120]
[422406861,1778935932000,-500.0,0.00040518,120]
[422406866,1778935932000,-500.0,0.00040518,120]
[422406840,1778935932000,-500.0,0.00040518,120]
[422406867,1778935932000,-500.0,0.00040518,120]
[422406869,1778935932000,-500.0,0.00040518,120]
[422406871,1778935932000,-500.0,0.00040518,120]
[422406875,1778935932000,-521.31670929,0.00040518,120]
[422406876,1778935932000,-500.0,0.00040518,120]
[422406874,1778935932000,-500.0,0.00040518,120]
[422406870,1778935932000,-500.0,0.00040518,120]
[422406858,1778935932000,-509.40330223,0.00040518,120]
[422406863,1778935932000,-500.0,0.00040518,120]
[422406857,1778935932000,-500.0,0.00040518,120]
[422406856,1778935932000,-514.6188748,0.00040518,120]
[422406845,1778935932000,-500.0,0.00040518,120]
[422406842,1778935932000,-500.0,0.00040518,120]
[422406850,1778935932000,-625.01375541,0.00040518,120]
[422406848,1778935932000,-500.0,0.00040518,120]
[422406851,1778935932000,-500.0,0.00040518,120]
[422406844,1778935932000,-500.0,0.00040518,120]
[422406841,1778935932000,-174.06878691,0.00040518,120]
[422406847,1778935932000,-500.0,0.00040518,120]
[422406846,1778935932000,-500.0,0.00040518,120]
[422406849,1778935932000,-500.0,0.00040518,120]
[422406855,1778935932000,-500.0,0.00040518,120]
[422406853,1778935932000,-500.0,0.00040518,120]
[422406854,1778935932000,-500.0,0.00040518,120]
[422406852,1778935932000,-427.28313467,0.00040518,120]
[422406859,1778935932000,-500.0,0.00040518,120]
[422406893,1778935933000,-500.0,0.00040518,120]
[422406892,1778935933000,-500.0,0.00040518,120]
[422406896,1778935933000,-529.18511601,0.00040518,120]
[422406895,1778935933000,-500.0,0.00040518,120]
[422406878,1778935933000,-500.0,0.00040518,120]
[422406891,1778935933000,-500.0,0.00040518,120]
[422406898,1778935933000,-522.4263773,0.00040518,120]
[422406905,1778935933000,-551.91225411,0.00040518,120]
[422406904,1778935933000,-195.70451275,0.00040518,120]
[422406897,1778935933000,-500.0,0.00040518,120]
[422406894,1778935933000,-203.04057881,0.00040518,120]
[422406886,1778935933000,-518.14513083,0.00040518,120]
[422406889,1778935933000,-260.28772335,0.00040518,120]
[422406888,1778935933000,-313.21409272,0.00040518,120]
[422406887,1778935933000,-500.0,0.00040518,120]
[422406879,1778935933000,-500.0,0.00040518,120]
[422406880,1778935933000,-500.0,0.00040518,120]
[422406884,1778935933000,-500.0,0.00040518,120]
[422406885,1778935933000,-500.0,0.00040518,120]
[422406882,1778935933000,-500.0,0.00040518,120]
[422406883,1778935933000,-500.0,0.00040518,120]
[422406881,1778935933000,-500.0,0.00040518,120]
[422406902,1778935933000,-500.0,0.00040518,120]
[422406890,1778935933000,-544.41016439,0.00040518,120]
[422406901,1778935933000,-210.93941299,0.00040518,120]
[422406877,1778935933000,-500.0,0.00040518,120]
[422406906,1778935933000,-488.38503893,0.00040518,120]
[422406900,1778935933000,-500.0,0.00040518,120]
[422406938,1778935933000,-239.34325348,0.00040518,120]
[422406937,1778935933000,-500.0,0.00040518,120]
[422406928,1778935933000,-211.73592567,0.00040518,120]
[422406927,1778935933000,-288.37372032,0.00040518,120]
[422406926,1778935933000,-500.0,0.00040518,120]
[422406918,1778935933000,-500.0,0.00040518,120]
[422406920,1778935933000,-500.0,0.00040518,120]
[422406921,1778935933000,-500.0,0.00040518,120]
[422406923,1778935933000,-508.79125677,0.00040518,120]
[422406925,1778935933000,-500.0,0.00040518,120]
[422406922,1778935933000,-499.58649996,0.00040518,120]
[422406924,1778935933000,-500.0,0.00040518,120]
[422406899,1778935933000,-500.0,0.00040518,120]
[422406917,1778935933000,-500.0,0.00040518,120]
[422406903,1778935933000,-269.84073382,0.00040518,120]
[422406908,1778935933000,-203.37182261,0.00040518,120]
[422406910,1778935933000,-199.23242598,0.00040518,120]
[422406911,1778935933000,-225.08955447,0.00040518,120]
[422406916,1778935933000,-500.0,0.00040518,120]
[422406919,1778935933000,-500.0,0.00040518,120]
[422406909,1778935933000,-358.73948714,0.00040518,120]
[422406912,1778935933000,-500.0,0.00040518,120]
[422406915,1778935933000,-500.0,0.00040518,120]
[422406914,1778935933000,-256.94962177,0.00040518,120]
[422406907,1778935933000,-303.4051758,0.00040518,120]
[422406913,1778935933000,-500.0,0.00040518,120]
[422407023,1778935934000,-500.0,0.00040518,120]
[422407021,1778935934000,-500.0,0.00040518,120]
[422407022,1778935934000,-500.0,0.00040518,120]
[422407027,1778935934000,-500.0,0.00040518,120]
[422407020,1778935934000,-500.0,0.00040518,120]
[422407019,1778935934000,-500.0,0.00040518,120]
[422407015,1778935934000,-500.0,0.00040518,120]
[422407013,1778935934000,-500.0,0.00040518,120]
[422407025,1778935934000,-500.0,0.00040518,120]
[422407024,1778935934000,-500.0,0.00040518,120]
[422407014,1778935934000,-440.66369446,0.00040518,120]
[422407028,1778935934000,-500.0,0.00040518,120]
[422407034,1778935934000,-539.94860557,0.00040518,120]
[422407037,1778935934000,-500.0,0.00040518,120]
[422407030,1778935934000,-500.0,0.00040518,120]
[422407010,1778935934000,-205.28258202,0.00040518,120]
[422407032,1778935934000,-214.06882713,0.00040518,120]
[422407036,1778935934000,-259.88052273,0.00040518,120]
[422407031,1778935934000,-515.51351676,0.00040518,120]
[422407038,1778935934000,-439.33413191,0.00040518,120]
[422407033,1778935934000,-500.0,0.00040518,120]
[422407035,1778935934000,-190.7248245,0.00040518,120]
[422407026,1778935934000,-424.41120673,0.00040518,120]
[422407016,1778935934000,-500.0,0.00040518,120]
[422407011,1778935934000,-500.0,0.00040518,120]
[422407009,1778935934000,-500.0,0.00040518,120]
[422406995,1778935934000,-500.0,0.00040518,120]
[422406987,1778935934000,-321.40823505,0.00040518,120]
[422406988,1778935934000,-500.0,0.00040518,120]
[422406993,1778935934000,-500.0,0.00040518,120]
[422406992,1778935934000,-301.90280812,0.00040518,120]
[422406989,1778935934000,-393.84037517,0.00040518,120]
[422406990,1778935934000,-500.0,0.00040518,120]
[422406991,1778935934000,-500.0,0.00040518,120]
[422406994,1778935934000,-500.0,0.00040518,120]
[422406996,1778935934000,-384.61050404,0.00040518,120]
[422407006,1778935934000,-346.32270197,0.00040518,120]
[422407012,1778935934000,-500.0,0.00040518,120]
[422406999,1778935934000,-568.78142951,0.00040518,120]
[422406998,1778935934000,-500.0,0.00040518,120]
[422406997,1778935934000,-500.0,0.00040518,120]
[422407001,1778935934000,-500.0,0.00040518,120]
[422407004,1778935934000,-500.0,0.00040518,120]
[422407005,1778935934000,-568.99630176,0.00040518,120]
[422407003,1778935934000,-519.7815891,0.00040518,120]
[422407002,1778935934000,-477.77588349,0.00040518,120]
[422407007,1778935934000,-300.65370161,0.00040518,120]
[422407039,1778935934000,-462.75998656,0.00040518,120]
[422407017,1778935934000,-500.0,0.00040518,120]
[422407008,1778935934000,-576.95399841,0.00040518,120]
[422407000,1778935934000,-500.0,0.00040518,120]
[422407041,1778935934000,-500.0,0.00040518,120]
[422407018,1778935934000,-446.63225146,0.00040518,120]
[422407044,1778935934000,-186.31520494,0.00040518,120]
[422407070,1778935934000,-500.0,0.00040518,120]
[422407072,1778935934000,-500.0,0.00040518,120]
[422407073,1778935934000,-500.0,0.00040518,120]
[422407074,1778935934000,-217.35446567,0.00040518,120]
[422407075,1778935934000,-500.0,0.00040518,120]
[422407076,1778935934000,-560.68671476,0.00040518,120]
[422407080,1778935934000,-535.84142041,0.00040518,120]
[422407081,1778935934000,-500.0,0.00040518,120]
[422407078,1778935934000,-337.37767261,0.00040518,120]
[422407082,1778935934000,-500.0,0.00040518,120]
[422407077,1778935934000,-475.99579283,0.00040518,120]
[422407069,1778935934000,-500.0,0.00040518,120]
[422407079,1778935934000,-527.51378099,0.00040518,120]
[422407085,1778935934000,-221.54212157,0.00040518,120]
[422407084,1778935934000,-500.0,0.00040518,120]
[422407090,1778935934000,-500.0,0.00040518,120]
[422407093,1778935934000,-500.0,0.00040518,120]
[422407086,1778935934000,-515.64176807,0.00040518,120]
[422407046,1778935934000,-521.67491722,0.00040518,120]
[422407091,1778935934000,-500.0,0.00040518,120]
[422407089,1778935934000,-500.0,0.00040518,120]
[422407092,1778935934000,-500.0,0.00040518,120]
[422407088,1778935934000,-500.0,0.00040518,120]
[422407094,1778935934000,-500.0,0.00040518,120]
[422407083,1778935934000,-500.0,0.00040518,120]
[422407065,1778935934000,-500.0,0.00040518,120]
[422407087,1778935934000,-514.1091452,0.00040518,120]
[422407066,1778935934000,-500.0,0.00040518,120]
[422407067,1778935934000,-158.27617212,0.00040518,120]
[422407042,1778935934000,-500.0,0.00040518,120]
[422407040,1778935934000,-500.0,0.00040518,120]
[422407043,1778935934000,-500.0,0.00040518,120]
[422407049,1778935934000,-500.0,0.00040518,120]
[422407045,1778935934000,-500.0,0.00040518,120]
[422407047,1778935934000,-350.13689478,0.00040518,120]
[422407048,1778935934000,-500.0,0.00040518,120]